[Event "*** Titled Tuesday Blitz"]
[Site "Chess.com"]
[Date "2019.11.05"]
[Round "5"]
[White "albi1999"]
[Black "Kazan28"]
[Result "1/2-1/2"]
[WhiteElo "2575"]
[BlackElo "2366"]
[TimeControl "180+2"]
[EndTime "14:07:17 PST"]
[Termination "Game drawn - insufficient material"]

1. d4 {[%clk 0:03:01.9]} 1... Nf6 {[%clk 0:02:59.6]} 2. c4 {[%clk 0:03:03]} 2...
e6 {[%clk 0:03:01.5]} 3. Nf3 {[%clk 0:03:03.9]} 3... d5 {[%clk 0:03:02.9]} 4. g3
{[%clk 0:03:05.2]} 4... dxc4 {[%clk 0:03:04.3]} 5. Bg2 {[%clk 0:03:06]} 5... a6
{[%clk 0:03:05.7]} 6. O-O {[%clk 0:03:05.9]} 6... Nc6 {[%clk 0:03:07.2]} 7. e3
{[%clk 0:03:07.3]} 7... Rb8 {[%clk 0:03:08.7]} 8. Nfd2 {[%clk 0:03:06.3]} 8...
e5 {[%clk 0:03:06.2]} 9. Bxc6+ {[%clk 0:03:05.4]} 9... bxc6 {[%clk 0:03:08.1]}
10. dxe5 {[%clk 0:03:07.3]} 10... Ng4 {[%clk 0:03:09.5]} 11. Nxc4 {[%clk
0:03:06.6]} 11... Be6 {[%clk 0:03:10.9]} 12. Nbd2 {[%clk 0:03:07.6]} 12... Bb4
{[%clk 0:03:12.4]} 13. b3 {[%clk 0:02:34.9]} 13... h5 {[%clk 0:03:11.5]} 14. Qe2
{[%clk 0:02:33.2]} 14... h4 {[%clk 0:03:03.6]} 15. Nf3 {[%clk 0:02:28.6]} 15...
hxg3 {[%clk 0:02:51.3]} 16. fxg3 {[%clk 0:02:30.1]} 16... Qd5 {[%clk 0:02:43.2]}
17. h4 {[%clk 0:02:30.8]} 17... Qe4 {[%clk 0:02:31.8]} 18. Ng5 {[%clk
0:02:25.6]} 18... Qg6 {[%clk 0:02:31.4]} 19. Bb2 {[%clk 0:02:10.9]} 19... Be7
{[%clk 0:02:09.8]} 20. Nxe6 {[%clk 0:02:02.3]} 20... Qxe6 {[%clk 0:02:11.7]} 21.
Rf4 {[%clk 0:02:01.6]} 21... Nh6 {[%clk 0:02:05.1]} 22. Raf1 {[%clk 0:01:58.5]}
22... g5 {[%clk 0:02:05.2]} 23. hxg5 {[%clk 0:01:56.3]} 23... Bxg5 {[%clk
0:02:07.1]} 24. Rf6 {[%clk 0:01:56.6]} 24... Qh3 {[%clk 0:02:05.3]} 25. Qg2
{[%clk 0:01:53.8]} 25... Qxg2+ {[%clk 0:02:06]} 26. Kxg2 {[%clk 0:01:55.7]}
26... Bxf6 {[%clk 0:02:07.1]} 27. Rxf6 {[%clk 0:01:57.6]} 27... Kd7 {[%clk
0:01:55.6]} 28. e6+ {[%clk 0:01:52.7]} 28... fxe6 {[%clk 0:01:54.7]} 29. Ne5+
{[%clk 0:01:53.5]} 29... Kc8 {[%clk 0:01:21.5]} 30. Nxc6 {[%clk 0:01:41.6]}
30... Ng4 {[%clk 0:01:22.5]} 31. Rxe6 {[%clk 0:01:40.1]} 31... Rh2+ {[%clk
0:01:17.5]} 32. Kf3 {[%clk 0:01:40.8]} 32... Rxb2 {[%clk 0:01:19.4]} 33. Kxg4
{[%clk 0:01:28.9]} 33... Kd7 {[%clk 0:01:17.7]} 34. Nxb8+ {[%clk 0:01:28.6]}
34... Kxe6 {[%clk 0:01:18.6]} 35. Nxa6 {[%clk 0:01:30.5]} 35... Kd6 {[%clk
0:01:15.1]} 36. Nb4 {[%clk 0:01:24.5]} 36... c5 {[%clk 0:01:13.5]} 37. Nd3
{[%clk 0:01:25.8]} 37... Rxa2 {[%clk 0:01:15]} 38. Kf5 {[%clk 0:01:26.3]} 38...
Ra3 {[%clk 0:01:15.2]} 39. g4 {[%clk 0:01:26.9]} 39... Rxb3 {[%clk 0:01:16.4]}
40. Nf4 {[%clk 0:01:26.3]} 40... Rxe3 {[%clk 0:01:17]} 41. g5 {[%clk 0:01:28.2]}
41... Re8 {[%clk 0:01:02.6]} 42. g6 {[%clk 0:01:29.3]} 42... Rf8+ {[%clk
0:01:03.6]} 43. Kg5 {[%clk 0:01:30.7]} 43... c4 {[%clk 0:00:53.7]} 44. g7 {[%clk
0:01:31]} 44... Rd8 {[%clk 0:00:50.1]} 45. Kf6 {[%clk 0:01:30.6]} 45... c3
{[%clk 0:00:50.1]} 46. Ne2 {[%clk 0:01:31.8]} 46... c2 {[%clk 0:00:47.1]} 47.
Kf7 {[%clk 0:01:33]} 47... Rd7+ {[%clk 0:00:47.3]} 48. Kf8 {[%clk 0:01:34.4]}
48... Ke5 {[%clk 0:00:43.9]} 49. g8=Q {[%clk 0:01:33.4]} 49... Rd8+ {[%clk
0:00:45]} 50. Kg7 {[%clk 0:01:34.6]} 50... Rxg8+ {[%clk 0:00:46.9]} 51. Kxg8
{[%clk 0:01:36.5]} 51... Ke4 {[%clk 0:00:47.8]} 52. Kf7 {[%clk 0:01:37.4]} 52...
Ke3 {[%clk 0:00:42.7]} 53. Nc1 {[%clk 0:01:38.4]} 53... Kd2 {[%clk 0:00:44.2]}
54. Na2 {[%clk 0:01:39]} 54... Kd3 {[%clk 0:00:43.4]} 55. Nb4+ {[%clk 0:01:39]}
55... Kc4 {[%clk 0:00:45.1]} 56. Nxc2 {[%clk 0:01:40.9]} 1/2-1/2

[Event "*** Titled Tuesday Blitz"]
[Site "Chess.com"]
[Date "2019.11.05"]
[Round "5"]
[White "Kostya_Nikologorskiy"]
[Black "jlucasvf"]
[Result "1-0"]
[WhiteElo "2560"]
[BlackElo "2786"]
[TimeControl "180+2"]
[EndTime "14:07:21 PST"]
[Termination "Kostya_Nikologorskiy won by resignation"]

1. d4 {[%clk 0:03:01.9]} 1... Nh6 {[%clk 0:02:58]} 2. e4 {[%clk 0:02:56.5]} 2...
e6 {[%clk 0:02:57.6]} 3. Nf3 {[%clk 0:02:49.9]} 3... d5 {[%clk 0:02:55.7]} 4.
Bxh6 {[%clk 0:02:48.1]} 4... gxh6 {[%clk 0:02:55.3]} 5. Nc3 {[%clk 0:02:42.7]}
5... Bg7 {[%clk 0:02:52.8]} 6. Bb5+ {[%clk 0:02:37]} 6... c6 {[%clk 0:02:52.8]}
7. Bd3 {[%clk 0:02:37.4]} 7... Nd7 {[%clk 0:02:48.2]} 8. O-O {[%clk 0:02:32.2]}
8... O-O {[%clk 0:02:43.3]} 9. exd5 {[%clk 0:02:28.9]} 9... cxd5 {[%clk
0:02:40.9]} 10. Qd2 {[%clk 0:02:25.5]} 10... Kh8 {[%clk 0:02:40]} 11. Rae1
{[%clk 0:02:15.9]} 11... Rg8 {[%clk 0:02:39.3]} 12. Ne2 {[%clk 0:02:12.1]} 12...
Nf8 {[%clk 0:02:34.1]} 13. Ng3 {[%clk 0:02:11]} 13... Ng6 {[%clk 0:02:20.4]} 14.
Nh5 {[%clk 0:02:05]} 14... Bf8 {[%clk 0:02:21.3]} 15. g3 {[%clk 0:02:01]} 15...
Nh4 {[%clk 0:02:20.1]} 16. Qf4 {[%clk 0:01:57.2]} 16... Nxf3+ {[%clk 0:02:10.2]}
17. Qxf3 {[%clk 0:01:58.5]} 17... f5 {[%clk 0:02:04.1]} 18. Nf4 {[%clk
0:01:35.6]} 18... Qf6 {[%clk 0:02:02.7]} 19. c3 {[%clk 0:01:33]} 19... Bd7
{[%clk 0:02:00.2]} 20. Re2 {[%clk 0:01:30.6]} 20... Bd6 {[%clk 0:01:59.3]} 21.
Rfe1 {[%clk 0:01:28.8]} 21... Rae8 {[%clk 0:02:00.3]} 22. Kh1 {[%clk 0:01:12.2]}
22... Re7 {[%clk 0:01:59.2]} 23. b4 {[%clk 0:01:02.8]} 23... Rg4 {[%clk
0:01:58.6]} 24. h3 {[%clk 0:01:01.3]} 24... Rg8 {[%clk 0:01:51.5]} 25. Nh5
{[%clk 0:00:57.4]} 25... Qg5 {[%clk 0:01:46.9]} 26. h4 {[%clk 0:00:55.7]} 26...
Qg6 {[%clk 0:01:40.9]} 27. Bxf5 {[%clk 0:00:56.5]} 27... Qf7 {[%clk 0:01:18.8]}
28. Bg4 {[%clk 0:00:48.4]} 28... Rxg4 {[%clk 0:01:19.9]} 29. Qxg4 {[%clk
0:00:47.3]} 29... e5 {[%clk 0:01:21.2]} 30. Qg7+ {[%clk 0:00:42]} 30... Qxg7
{[%clk 0:01:21.8]} 31. Nxg7 {[%clk 0:00:43.9]} 31... Bg4 {[%clk 0:01:11]} 32.
dxe5 {[%clk 0:00:28.8]} 32... Bxe2 {[%clk 0:01:11.1]} 33. Rxe2 {[%clk
0:00:23.9]} 33... Kxg7 {[%clk 0:01:09.6]} 34. f4 {[%clk 0:00:23.8]} 34... h5
{[%clk 0:01:09.9]} 35. Rd2 {[%clk 0:00:23.4]} 35... Bc7 {[%clk 0:01:08.2]} 36.
Rxd5 {[%clk 0:00:24]} 36... Kg6 {[%clk 0:01:09.8]} 37. Kg2 {[%clk 0:00:25]}
37... Kf5 {[%clk 0:01:11.2]} 38. Kf3 {[%clk 0:00:26.4]} 38... Ke6 {[%clk
0:01:11.3]} 39. c4 {[%clk 0:00:27.5]} 39... Bb6 {[%clk 0:01:03.7]} 40. Ke4
{[%clk 0:00:27.9]} 40... Bc7 {[%clk 0:01:04.1]} 41. f5+ {[%clk 0:00:26.8]} 41...
Kf7 {[%clk 0:01:05.5]} 42. f6 {[%clk 0:00:24.2]} 1-0

[Event "*** Titled Tuesday Blitz"]
[Site "Chess.com"]
[Date "2019.11.05"]
[Round "5"]
[White "raswi"]
[Black "Knight8700"]
[Result "0-1"]
[WhiteElo "2217"]
[BlackElo "2421"]
[TimeControl "180+2"]
[EndTime "14:07:21 PST"]
[Termination "Knight8700 won by checkmate"]

1. e4 {[%clk 0:03:01.2]} 1... c5 {[%clk 0:02:58.6]} 2. Nf3 {[%clk 0:03:01.6]}
2... Nc6 {[%clk 0:02:58.4]} 3. d4 {[%clk 0:03:02.5]} 3... cxd4 {[%clk 0:02:59]}
4. Nxd4 {[%clk 0:03:04.1]} 4... g6 {[%clk 0:02:59.8]} 5. c4 {[%clk 0:03:04.5]}
5... Bg7 {[%clk 0:03:00.1]} 6. Be3 {[%clk 0:03:05.5]} 6... d6 {[%clk 0:02:58.1]}
7. Nc3 {[%clk 0:03:02.4]} 7... Nf6 {[%clk 0:02:59.3]} 8. Be2 {[%clk 0:03:00.8]}
8... O-O {[%clk 0:03:00.6]} 9. O-O {[%clk 0:03:00.5]} 9... Bd7 {[%clk
0:02:59.4]} 10. Rc1 {[%clk 0:02:58.1]} 10... Nxd4 {[%clk 0:02:55]} 11. Bxd4
{[%clk 0:02:58.5]} 11... Bc6 {[%clk 0:02:56.4]} 12. f3 {[%clk 0:02:57.9]} 12...
a5 {[%clk 0:02:55.6]} 13. b3 {[%clk 0:02:54.8]} 13... Nd7 {[%clk 0:02:48.7]} 14.
Be3 {[%clk 0:02:55.7]} 14... Nc5 {[%clk 0:02:44.1]} 15. Qd2 {[%clk 0:02:54.7]}
15... e6 {[%clk 0:02:39.6]} 16. Kh1 {[%clk 0:02:48.4]} 16... Be5 {[%clk
0:02:38.1]} 17. Bg5 {[%clk 0:02:27.3]} 17... Qb6 {[%clk 0:02:17.9]} 18. Rb1
{[%clk 0:02:02]} 18... Qb4 {[%clk 0:02:13.9]} 19. Rfc1 {[%clk 0:01:56.3]} 19...
a4 {[%clk 0:02:12.1]} 20. bxa4 {[%clk 0:01:17.6]} 20... Qa5 {[%clk 0:02:12.2]}
21. Qc2 {[%clk 0:00:32.5]} 21... Nxa4 {[%clk 0:02:06.6]} 22. Nxa4 {[%clk
0:00:32.9]} 22... Bxa4 {[%clk 0:02:08.5]} 23. Qd2 {[%clk 0:00:27.6]} 23... Bc6
{[%clk 0:02:07]} 24. Qe3 {[%clk 0:00:17.8]} 24... Qxa2 {[%clk 0:02:05.7]} 25. f4
{[%clk 0:00:18.1]} 25... Ra3 {[%clk 0:02:05.2]} 26. Qf2 {[%clk 0:00:17.3]} 26...
Bb2 {[%clk 0:01:54.5]} 27. Re1 {[%clk 0:00:16.4]} 27... Bxe4 {[%clk 0:01:54.7]}
28. Rbd1 {[%clk 0:00:15.7]} 28... Bc3 {[%clk 0:01:54.2]} 29. Rf1 {[%clk
0:00:16.6]} 29... Bb4 {[%clk 0:01:41.6]} 30. Be7 {[%clk 0:00:14.3]} 30... Bc5
{[%clk 0:01:41.2]} 31. Qe1 {[%clk 0:00:07]} 31... Re8 {[%clk 0:01:28.8]} 32. Rd2
{[%clk 0:00:07.3]} 32... Qb3 {[%clk 0:01:25.9]} 33. Qh4 {[%clk 0:00:03.4]} 33...
Qe3 {[%clk 0:01:14.1]} 34. Bf6 {[%clk 0:00:04.2]} 34... d5 {[%clk 0:01:14.4]}
35. Qh6 {[%clk 0:00:03.8]} 35... Bf8 {[%clk 0:01:14.5]} 36. Qh4 {[%clk
0:00:02.1]} 36... Qxd2 {[%clk 0:01:14.2]} 37. Bf3 {[%clk 0:00:02.2]} 37... Bxf3
{[%clk 0:01:13.5]} 38. gxf3 {[%clk 0:00:03.1]} 38... Ra2 {[%clk 0:01:11.9]} 39.
Rg1 {[%clk 0:00:03.5]} 39... dxc4 {[%clk 0:01:12.3]} 40. f5 {[%clk 0:00:04.1]}
40... exf5 {[%clk 0:01:12.9]} 41. Qg5 {[%clk 0:00:04]} 41... Qxh2# {[%clk
0:01:10.3]} 0-1

[Event "*** Titled Tuesday Blitz"]
[Site "Chess.com"]
[Date "2019.11.05"]
[Round "5"]
[White "przemekpiotrowski"]
[Black "HrvojeZagreb"]
[Result "1-0"]
[WhiteElo "2396"]
[BlackElo "2168"]
[TimeControl "180+2"]
[EndTime "14:07:22 PST"]
[Termination "przemekpiotrowski won by resignation"]

1. d4 {[%clk 0:03:01.9]} 1... e6 {[%clk 0:03:01.1]} 2. Nf3 {[%clk 0:03:02.9]}
2... f5 {[%clk 0:03:02.3]} 3. g3 {[%clk 0:03:03.7]} 3... Nf6 {[%clk 0:03:03.2]}
4. Bg2 {[%clk 0:03:05.2]} 4... d6 {[%clk 0:03:03.3]} 5. O-O {[%clk 0:03:06.6]}
5... Be7 {[%clk 0:03:04.7]} 6. c4 {[%clk 0:03:08.1]} 6... O-O {[%clk 0:03:05.2]}
7. Nc3 {[%clk 0:03:09.6]} 7... Ne4 {[%clk 0:03:06.3]} 8. Bd2 {[%clk 0:03:00.7]}
8... Nxc3 {[%clk 0:03:03.1]} 9. Bxc3 {[%clk 0:03:01.5]} 9... Bf6 {[%clk
0:03:04.4]} 10. Qc2 {[%clk 0:03:01.5]} 10... Nc6 {[%clk 0:03:01]} 11. Rad1
{[%clk 0:03:01.7]} 11... Qe8 {[%clk 0:03:01.1]} 12. d5 {[%clk 0:02:57.1]} 12...
Ne5 {[%clk 0:02:59.8]} 13. Nxe5 {[%clk 0:02:50.3]} 13... dxe5 {[%clk 0:03:01.7]}
14. e4 {[%clk 0:02:49]} 14... Qh5 {[%clk 0:02:40.9]} 15. exf5 {[%clk 0:02:17.8]}
15... exf5 {[%clk 0:02:40.1]} 16. f4 {[%clk 0:02:19.4]} 16... e4 {[%clk
0:02:35.3]} 17. Be5 {[%clk 0:02:19.4]} 17... Qf7 {[%clk 0:02:19]} 18. Rf2 {[%clk
0:02:05.3]} 18... Re8 {[%clk 0:02:15.1]} 19. Qc3 {[%clk 0:01:58.9]} 19... b6
{[%clk 0:02:10.6]} 20. Rfd2 {[%clk 0:01:55.6]} 20... Bb7 {[%clk 0:01:58.1]} 21.
Bxf6 {[%clk 0:01:51.5]} 21... Qxf6 {[%clk 0:01:57.7]} 22. Qxf6 {[%clk
0:01:52.7]} 22... gxf6 {[%clk 0:01:59.6]} 23. d6 {[%clk 0:01:54.3]} 23... cxd6
{[%clk 0:01:50.7]} 24. Rxd6 {[%clk 0:01:54.7]} 24... Kf7 {[%clk 0:01:40.3]} 25.
Bh3 {[%clk 0:01:50.2]} 25... Bc8 {[%clk 0:01:40.2]} 26. Rc6 {[%clk 0:01:47.6]}
26... e3 {[%clk 0:01:16.5]} 27. Rc7+ {[%clk 0:01:41.7]} 27... Kg6 {[%clk
0:01:15.3]} 28. Re1 {[%clk 0:01:35.4]} 28... Ba6 {[%clk 0:00:39.4]} 29. b3
{[%clk 0:01:33.5]} 29... b5 {[%clk 0:00:40.1]} 30. cxb5 {[%clk 0:01:29]} 30...
Bxb5 {[%clk 0:00:40.8]} 31. Bxf5+ {[%clk 0:01:28.5]} 31... Kxf5 {[%clk
0:00:38.5]} 32. Rc5+ {[%clk 0:01:30.1]} 32... Kg4 {[%clk 0:00:37.9]} 33. Kg2
{[%clk 0:01:23.6]} 33... Bf1+ {[%clk 0:00:14.3]} 34. Rxf1 {[%clk 0:01:20.5]}
34... f5 {[%clk 0:00:14.7]} 35. h3+ {[%clk 0:01:15.4]} 35... Kh5 {[%clk
0:00:15.9]} 36. Rxf5+ {[%clk 0:01:16.6]} 36... Kg6 {[%clk 0:00:17.3]} 37. Rg5+
{[%clk 0:01:15]} 37... Kf6 {[%clk 0:00:18.3]} 38. Re1 {[%clk 0:01:16.3]} 38...
Rad8 {[%clk 0:00:18.5]} 39. Kf3 {[%clk 0:01:13.7]} 39... Rd3 {[%clk 0:00:17.2]}
40. Re2 {[%clk 0:01:12.1]} 40... Rd2 {[%clk 0:00:10.5]} 41. Re5 {[%clk
0:01:09.4]} 41... Rxe2 {[%clk 0:00:02.1]} 1-0

[Event "*** Titled Tuesday Blitz"]
[Site "Chess.com"]
[Date "2019.11.05"]
[Round "5"]
[White "Witik"]
[Black "SaraciNderim"]
[Result "0-1"]
[WhiteElo "2582"]
[BlackElo "2816"]
[TimeControl "180+2"]
[EndTime "14:07:27 PST"]
[Termination "SaraciNderim won by resignation"]

1. d4 {[%clk 0:03:01.9]} 1... Nf6 {[%clk 0:02:59.1]} 2. c4 {[%clk 0:03:00.7]}
2... e6 {[%clk 0:02:59.1]} 3. Nf3 {[%clk 0:03:00.6]} 3... d5 {[%clk 0:02:59.3]}
4. Nc3 {[%clk 0:03:01.6]} 4... Bb4 {[%clk 0:02:59.5]} 5. cxd5 {[%clk 0:03:01.5]}
5... exd5 {[%clk 0:03:00.1]} 6. Bg5 {[%clk 0:03:02.6]} 6... O-O {[%clk
0:03:00.7]} 7. e3 {[%clk 0:03:02.9]} 7... h6 {[%clk 0:03:01.5]} 8. Bh4 {[%clk
0:03:02.7]} 8... c5 {[%clk 0:03:02.3]} 9. Be2 {[%clk 0:02:57.5]} 9... Nc6 {[%clk
0:03:03]} 10. O-O {[%clk 0:02:58.3]} 10... cxd4 {[%clk 0:03:03.9]} 11. Nxd4
{[%clk 0:02:56.4]} 11... Bxc3 {[%clk 0:03:01.5]} 12. bxc3 {[%clk 0:02:57.1]}
12... Re8 {[%clk 0:03:02.3]} 13. c4 {[%clk 0:02:45.8]} 13... Nxd4 {[%clk
0:03:00.3]} 14. Qxd4 {[%clk 0:02:41.7]} 14... dxc4 {[%clk 0:03:01]} 15. Bxf6
{[%clk 0:02:15.8]} 15... Qxf6 {[%clk 0:03:00.1]} 16. Qxf6 {[%clk 0:02:15.4]}
16... gxf6 {[%clk 0:03:02]} 17. Bxc4 {[%clk 0:02:17.3]} 17... Be6 {[%clk
0:03:02.4]} 18. Be2 {[%clk 0:02:10.5]} 18... Rac8 {[%clk 0:03:00.7]} 19. a4
{[%clk 0:02:09.3]} 19... Red8 {[%clk 0:03:00.5]} 20. a5 {[%clk 0:01:58.1]} 20...
Rc2 {[%clk 0:02:59.1]} 21. Bf3 {[%clk 0:01:57.1]} 21... Rb2 {[%clk 0:02:59.8]}
22. Rfb1 {[%clk 0:01:49.4]} 22... Rdd2 {[%clk 0:02:58.8]} 23. Bxb7 {[%clk
0:01:38]} 23... Rxf2 {[%clk 0:02:57.6]} 24. Rxb2 {[%clk 0:01:38.9]} 24... Rxb2
{[%clk 0:02:59.5]} 25. a6 {[%clk 0:01:40.5]} 25... Kg7 {[%clk 0:02:56.4]} 26.
Rd1 {[%clk 0:01:37.2]} 26... Ra2 {[%clk 0:02:55.6]} 27. Rd4 {[%clk 0:01:26.3]}
27... f5 {[%clk 0:02:54.5]} 28. h4 {[%clk 0:01:16.9]} 28... Kf6 {[%clk 0:02:55]}
29. Rd8 {[%clk 0:01:14]} 29... Bc4 {[%clk 0:02:51.2]} 30. Rd6+ {[%clk
0:00:54.1]} 30... Kg7 {[%clk 0:02:49]} 31. Kh2 {[%clk 0:00:48.2]} 31... Be2
{[%clk 0:02:42.6]} 32. Kg3 {[%clk 0:00:46.9]} 32... Ra4 {[%clk 0:02:42]} 33. Kf2
{[%clk 0:00:33.8]} 33... Bb5 {[%clk 0:02:38.6]} 34. Kg3 {[%clk 0:00:31.6]} 34...
Rg4+ {[%clk 0:02:37.1]} 35. Kf2 {[%clk 0:00:27.3]} 35... Rxh4 {[%clk 0:02:37.2]}
36. Rd5 {[%clk 0:00:23.3]} 36... Rb4 {[%clk 0:02:35.4]} 37. Rxf5 {[%clk
0:00:21.7]} 37... Bd3 {[%clk 0:02:35.6]} 38. Ra5 {[%clk 0:00:21.5]} 38... Kf6
{[%clk 0:02:32.7]} 39. e4 {[%clk 0:00:21.7]} 39... Bxe4 {[%clk 0:02:30.6]} 40.
Bxe4 {[%clk 0:00:11.6]} 40... Rxe4 {[%clk 0:02:32.5]} 41. Rc5 {[%clk 0:00:11.1]}
41... Re6 {[%clk 0:02:32.9]} 42. Ra5 {[%clk 0:00:10.9]} 42... Re5 {[%clk
0:02:34]} 43. Ra3 {[%clk 0:00:11.3]} 43... Rb5 {[%clk 0:02:34.6]} 44. Kf3 {[%clk
0:00:12.5]} 44... Kg5 {[%clk 0:02:34.7]} 45. Ra4 {[%clk 0:00:11.8]} 45... f5
{[%clk 0:02:34.8]} 46. Kg3 {[%clk 0:00:10.3]} 46... Rb3+ {[%clk 0:02:35.5]} 47.
Kh2 {[%clk 0:00:11]} 47... h5 {[%clk 0:02:36.4]} 48. Ra2 {[%clk 0:00:11.5]}
48... Kg4 {[%clk 0:02:36.5]} 49. Ra4+ {[%clk 0:00:11.3]} 49... f4 {[%clk
0:02:37.4]} 50. Ra2 {[%clk 0:00:08.7]} 50... h4 {[%clk 0:02:38]} 51. Ra4 {[%clk
0:00:08.3]} 51... Rb2 {[%clk 0:02:38.7]} 52. Kg1 {[%clk 0:00:08.8]} 52... Rb3
{[%clk 0:02:37.4]} 53. Kh2 {[%clk 0:00:09.9]} 53... h3 {[%clk 0:02:38.4]} 54.
gxh3+ {[%clk 0:00:11]} 54... Rxh3+ {[%clk 0:02:40.3]} 55. Kg2 {[%clk 0:00:12.9]}
55... Rb3 {[%clk 0:02:42]} 56. Ra2 {[%clk 0:00:12.1]} 56... Rh3 {[%clk
0:02:42.4]} 57. Ra4 {[%clk 0:00:12.2]} 57... Rh6 {[%clk 0:02:43.2]} 58. Kf2
{[%clk 0:00:08.5]} 58... Rh2+ {[%clk 0:02:43.4]} 59. Kg1 {[%clk 0:00:09.9]}
59... Rb2 {[%clk 0:02:44.6]} 60. Kf1 {[%clk 0:00:08.7]} 60... Kg3 {[%clk
0:02:45.1]} 61. Ra5 {[%clk 0:00:08.5]} 61... Rb1+ {[%clk 0:02:45.1]} 62. Ke2
{[%clk 0:00:10]} 62... f3+ {[%clk 0:02:47]} 63. Kd2 {[%clk 0:00:10.9]} 63... f2
{[%clk 0:02:46.9]} 0-1

[Event "*** Titled Tuesday Blitz"]
[Site "Chess.com"]
[Date "2019.11.05"]
[Round "5"]
[White "esskeettit"]
[Black "Astaneh"]
[Result "1-0"]
[WhiteElo "2442"]
[BlackElo "2598"]
[TimeControl "180+2"]
[EndTime "14:07:27 PST"]
[Termination "esskeettit won by resignation"]

1. e4 {[%clk 0:03:01.9]} 1... c6 {[%clk 0:02:59.1]} 2. c4 {[%clk 0:02:59.1]}
2... d5 {[%clk 0:02:59.4]} 3. cxd5 {[%clk 0:02:56.9]} 3... cxd5 {[%clk
0:03:01.3]} 4. exd5 {[%clk 0:02:56.4]} 4... Nf6 {[%clk 0:03:02.9]} 5. Bb5+
{[%clk 0:02:49.8]} 5... Nbd7 {[%clk 0:02:58]} 6. Nf3 {[%clk 0:02:50.3]} 6...
Nxd5 {[%clk 0:02:50.8]} 7. Nc3 {[%clk 0:02:42.4]} 7... Nc7 {[%clk 0:02:50.5]} 8.
Bc4 {[%clk 0:02:36.5]} 8... Nb6 {[%clk 0:02:37.1]} 9. Bb3 {[%clk 0:02:32]} 9...
Be6 {[%clk 0:02:37.5]} 10. Ng5 {[%clk 0:02:25.5]} 10... Bxb3 {[%clk 0:02:35.7]}
11. Qxb3 {[%clk 0:02:27.4]} 11... e6 {[%clk 0:02:36.6]} 12. Nge4 {[%clk
0:02:25]} 12... Qd3 {[%clk 0:02:30.6]} 13. f3 {[%clk 0:01:53.7]} 13... O-O-O
{[%clk 0:02:15.6]} 14. Nf2 {[%clk 0:01:51.1]} 14... Qd4 {[%clk 0:02:14.8]} 15.
O-O {[%clk 0:01:46.9]} 15... Bc5 {[%clk 0:02:11.5]} 16. Kh1 {[%clk 0:01:40.3]}
16... f5 {[%clk 0:01:58.5]} 17. d3 {[%clk 0:01:35.4]} 17... Nbd5 {[%clk
0:01:54.8]} 18. Bg5 {[%clk 0:01:22.4]} 18... Rd6 {[%clk 0:01:44.4]} 19. Na4
{[%clk 0:00:53.6]} 19... Rc6 {[%clk 0:01:43.2]} 20. Rac1 {[%clk 0:00:49.4]}
20... Na6 {[%clk 0:01:39.8]} 21. Rc4 {[%clk 0:00:29.2]} 21... Qe5 {[%clk
0:01:40.8]} 22. d4 {[%clk 0:00:27.8]} 22... Bxd4 {[%clk 0:01:38.6]} 23. Nd3
{[%clk 0:00:28.7]} 23... Qc7 {[%clk 0:00:17.3]} 24. Rxd4 {[%clk 0:00:28.2]}
24... h6 {[%clk 0:00:19]} 25. Bf4 {[%clk 0:00:19.1]} 25... Nxf4 {[%clk
0:00:19.1]} 26. Nxf4 {[%clk 0:00:21]} 26... e5 {[%clk 0:00:19.7]} 27. Nd5 {[%clk
0:00:21.2]} 27... Qa5 {[%clk 0:00:16.3]} 28. Rdd1 {[%clk 0:00:20.9]} 28... Re8
{[%clk 0:00:16.8]} 29. Ne7+ {[%clk 0:00:18.8]} 29... Kc7 {[%clk 0:00:12]} 30.
Nxc6 {[%clk 0:00:17.2]} 30... bxc6 {[%clk 0:00:06.2]} 31. Qf7+ {[%clk
0:00:17.8]} 1-0

[Event "*** Titled Tuesday Blitz"]
[Site "Chess.com"]
[Date "2019.11.05"]
[Round "5"]
[White "DonBroca"]
[Black "isla88"]
[Result "0-1"]
[WhiteElo "2006"]
[BlackElo "2176"]
[TimeControl "180+2"]
[EndTime "14:07:27 PST"]
[Termination "isla88 won by resignation"]

1. e4 {[%clk 0:03:01.9]} 1... d6 {[%clk 0:02:58.2]} 2. d4 {[%clk 0:03:02.8]}
2... Nf6 {[%clk 0:02:52.5]} 3. Nc3 {[%clk 0:03:04]} 3... Nbd7 {[%clk 0:02:48.8]}
4. Nf3 {[%clk 0:03:03]} 4... e5 {[%clk 0:02:49.4]} 5. g4 {[%clk 0:03:04]} 5...
Nxg4 {[%clk 0:02:49.1]} 6. Rg1 {[%clk 0:03:04.4]} 6... Ngf6 {[%clk 0:02:50.7]}
7. Bc4 {[%clk 0:03:04.3]} 7... c6 {[%clk 0:02:51.9]} 8. dxe5 {[%clk 0:02:20.2]}
8... Nxe5 {[%clk 0:02:20.4]} 9. Nxe5 {[%clk 0:02:15.2]} 9... dxe5 {[%clk
0:02:21.3]} 10. Bxf7+ {[%clk 0:02:13.3]} 10... Ke7 {[%clk 0:02:22.8]} 11. Qxd8+
{[%clk 0:01:54.1]} 11... Kxd8 {[%clk 0:02:23]} 12. f4 {[%clk 0:01:55.5]} 12...
Bb4 {[%clk 0:01:58.1]} 13. fxe5 {[%clk 0:00:53.7]} 13... Nxe4 {[%clk 0:01:55.3]}
14. Bd2 {[%clk 0:00:23.5]} 14... Nxd2 {[%clk 0:01:42.4]} 15. Kxd2 {[%clk
0:00:20.6]} 15... Ke7 {[%clk 0:01:43.9]} 16. Rxg7 {[%clk 0:00:15.7]} 16... Kf8
{[%clk 0:01:43.4]} 17. Rag1 {[%clk 0:00:14.3]} 17... Bf5 {[%clk 0:01:42.1]} 18.
e6 {[%clk 0:00:03.3]} 18... Rd8+ {[%clk 0:01:41.2]} 19. Kc1 {[%clk 0:00:04.1]}
19... Bc5 {[%clk 0:01:41.2]} 20. Rg8+ {[%clk 0:00:04.7]} 20... Ke7 {[%clk
0:01:36.6]} 21. Rxd8 {[%clk 0:00:04]} 21... Rxd8 {[%clk 0:01:34.4]} 22. Rd1
{[%clk 0:00:04.9]} 22... Be3+ {[%clk 0:01:31.3]} 23. Kb1 {[%clk 0:00:06]} 23...
Rxd1+ {[%clk 0:00:51]} 24. Nxd1 {[%clk 0:00:07.9]} 24... Bd4 {[%clk 0:00:49.3]}
25. Bg8 {[%clk 0:00:04.9]} 25... h5 {[%clk 0:00:47.7]} 26. Kc1 {[%clk
0:00:02.5]} 26... Bxe6 {[%clk 0:00:46.4]} 27. Bxe6 {[%clk 0:00:04.4]} 27... Kxe6
{[%clk 0:00:47.1]} 28. c3 {[%clk 0:00:04.1]} 28... Bb6 {[%clk 0:00:47]} 29. h3
{[%clk 0:00:03.3]} 29... Kf5 {[%clk 0:00:48]} 30. Kd2 {[%clk 0:00:04.1]} 30...
Kf4 {[%clk 0:00:49]} 31. Kd3 {[%clk 0:00:03.1]} 31... Kg3 {[%clk 0:00:49.3]} 32.
Ke4 {[%clk 0:00:04.1]} 32... Kxh3 {[%clk 0:00:50]} 33. Kf3 {[%clk 0:00:05.7]}
33... h4 {[%clk 0:00:50.3]} 34. c4 {[%clk 0:00:04.4]} 34... Bd4 {[%clk
0:00:49.5]} 35. Ke4 {[%clk 0:00:02.9]} 35... c5 {[%clk 0:00:49.7]} 36. b4 {[%clk
0:00:03.3]} 36... Kg2 {[%clk 0:00:49.8]} 37. bxc5 {[%clk 0:00:02.9]} 37... Bxc5
{[%clk 0:00:50.8]} 38. Kd5 {[%clk 0:00:03.9]} 38... b6 {[%clk 0:00:51]} 39. Nc3
{[%clk 0:00:04.3]} 39... h3 {[%clk 0:00:50.8]} 40. Ne2 {[%clk 0:00:04]} 0-1